fUST/lending_fUST_20250811
["ID","MTS","AMOUNT","RATE_DAILY","PERIOD"]
[378529691,1754902240617,-151.0,0.00020372,2]
[378529692,1754902240626,-500.0,0.00020372,2]
[378529693,1754902240636,-151.0,0.00020372,2]
[378529694,1754902240647,-151.0,0.00020372,2]
[378529695,1754902240659,-151.0,0.00020372,2]
[378529696,1754902240668,-500.0,0.00020372,2]
[378529697,1754902240677,-2183.31810187,0.00020372,2]
[378529698,1754902240687,-151.0,0.00020372,2]
[378529699,1754902240696,-151.0,0.00020372,2]
[378529700,1754902240705,-151.0,0.00020372,2]
[378529701,1754902240715,-500.0,0.00020372,2]
[378529702,1754902240725,-151.0,0.00020372,2]
[378529703,1754902240734,-197.12369318,0.00020372,2]
[378529704,1754902240743,-500.0,0.00020372,2]
[378529705,1754902240753,-151.0,0.00020372,2]
[378529706,1754902240762,-151.0,0.00020372,2]
[378529707,1754902240771,-500.0,0.00020372,2]
[378529708,1754902240780,-151.0,0.00020372,2]
[378529709,1754902240789,-151.0,0.00020372,2]
[378529710,1754902240799,-151.0,0.00020372,2]
[378529711,1754902240808,-151.0,0.00020372,2]
[378529712,1754902240820,-500.0,0.00020372,2]
[378529713,1754902240830,-151.0,0.00020372,2]
[378529714,1754902240842,-151.0,0.00020372,2]
[378529715,1754902240851,-151.0,0.00020372,2]
[378529716,1754902240861,-500.0,0.00020372,2]
[378529717,1754902240870,-151.0,0.00020372,2]
[378529718,1754902240880,-151.0,0.00020372,2]
[378529719,1754902240889,-151.0,0.00020372,2]
[378529720,1754902240898,-151.0,0.00020372,2]
[378529721,1754902240908,-151.0,0.00020372,2]
[378529722,1754902240919,-500.0,0.00020372,2]
[378529723,1754902240928,-151.0,0.00020372,2]
[378529724,1754902240938,-151.0,0.00020372,2]
[378529725,1754902240948,-151.0,0.00020372,2]
[378529726,1754902240957,-500.0,0.00020372,2]
[378529727,1754902240967,-151.0,0.00020372,2]
[378529728,1754902240977,-151.0,0.00020372,2]
[378529729,1754902240986,-151.0,0.00020372,2]
[378529730,1754902240995,-151.0,0.00020372,2]
[378529731,1754902241005,-151.0,0.00020372,2]
[378529732,1754902241014,-151.0,0.00020372,2]
[378529734,1754902241023,-256.43342021,0.00020372,2]
[378529735,1754902241032,-250.0,0.00020372,2]
[378529736,1754902241041,-151.0,0.00020372,2]
[378529737,1754902241052,-250.0,0.00020372,2]
[378529738,1754902241061,-151.0,0.00020372,2]
[378529739,1754902241070,-250.0,0.00020372,2]
[378529740,1754902241079,-151.0,0.00020372,2]
[378529741,1754902241089,-151.0,0.00020372,2]
[378529742,1754902241098,-250.0,0.00020372,2]
[378529743,1754902241107,-151.0,0.00020372,2]
[378529744,1754902241116,-250.0,0.00020372,2]
[378529745,1754902241126,-151.0,0.00020372,2]
[378529746,1754902241135,-250.0,0.00020372,2]
[378529747,1754902241144,-151.0,0.00020372,2]
[378529748,1754902241154,-250.0,0.00020372,2]
[378529749,1754902241164,-151.0,0.00020372,2]
[378529750,1754902241173,-250.0,0.00020372,2]
[378529751,1754902241183,-151.0,0.00020372,2]
[378529752,1754902241192,-250.0,0.00020372,2]
[378529753,1754902241202,-151.0,0.00020372,2]
[378529754,1754902241212,-250.0,0.00020372,2]
[378529755,1754902241221,-151.0,0.00020372,2]
[378529756,1754902241231,-250.0,0.00020372,2]
[378529757,1754902241240,-151.0,0.00020372,2]
[378529758,1754902241250,-250.0,0.00020372,2]
[378529759,1754902241259,-151.0,0.00020372,2]
[378529760,1754902241268,-9366.87524174,0.00020382,2]
[378529761,1754902241277,-2264.10087164,0.00020427,2]
[378529762,1754902241287,-2347.87260389,0.00020482,2]
[378529763,1754902241296,-1000.0,0.00020521,2]
[378529764,1754902241306,-500.0,0.00020525,2]
[378529765,1754902241315,-2434.74389024,0.00020537,2]
[378529766,1754902241324,-500.0,0.00020545,2]
[378529767,1754902241334,-500.0,0.00020545,2]
[378529768,1754902241343,-500.0,0.00020545,2]
[378529769,1754902241353,-151.0,0.00020545,2]
[378529770,1754902241362,-500.0,0.00020545,2]
[378529771,1754902241371,-560.35408176,0.00020545,2]
[378529772,1754902241381,-500.0,0.00020545,2]
[378529773,1754902241390,-151.0,0.00020545,2]
[378529774,1754902241400,-151.0,0.00020545,2]
[378529775,1754902241409,-500.0,0.00020545,2]
[378529776,1754902241418,-151.0,0.00020545,2]
[378529777,1754902241427,-500.0,0.00020545,2]
[378529778,1754902241437,-500.0,0.00020545,2]
[378529779,1754902241447,-151.0,0.00020545,2]
[378529780,1754902241456,-151.0,0.00020545,2]
[378529781,1754902241466,-151.0,0.00020545,2]
[378529782,1754902241475,-277.88573075,0.00020545,2]
[378529783,1754902241484,-152.0364052,0.00020545,2]
[378529784,1754902241494,-500.0,0.00020545,2]
[378529785,1754902241503,-2524.82941417,0.00020592,2]
[378529786,1754902241513,-2618.2481025,0.00020647,2]
[378529787,1754902241523,-250.0,0.00020692,2]
[378529788,1754902241535,-1164.95935531,0.00020702,2]
[378529789,1754902241544,-500.0,0.0002071,2]
[378529790,1754902241553,-500.0,0.0002071,2]
[378529791,1754902241563,-500.0,0.0002071,2]
[378529792,1754902241573,-500.0,0.0002071,2]
[378529793,1754902241582,-500.0,0.0002071,2]
[378529794,1754902241592,-500.0,0.00020742,2]
[378529795,1754902241601,-500.0,0.00020742,2]
[378529796,1754902241611,-500.0,0.00020742,2]
[378529797,1754902241620,-212.05419545,0.00020742,2]
[378529798,1754902241629,-500.0,0.00020799,2]
[378529799,1754902241639,-206.62009121,0.000208,2]
[378529800,1754902241648,-500.0,0.00020819,2]
[378529801,1754902241658,-500.0,0.00020819,2]
[378529802,1754902241667,-500.0,0.00020819,2]
[378529803,1754902241676,-248.00239518,0.00020819,2]
[378529804,1754902241685,-524.32682312,0.00020819,2]
[378529805,1754902241695,-236.8236247,0.00020819,2]
[378529806,1754902241704,-151.0,0.00020819,2]
[378529807,1754902241713,-500.0,0.00020819,2]
[378529808,1754902241722,-151.0,0.00020819,2]
[378529809,1754902241732,-500.0,0.00020819,2]
[378529810,1754902241741,-500.0,0.00020819,2]
[378529811,1754902241837,-151.0,0.00020819,2]
[378529812,1754902241847,-151.0,0.00020819,2]
[378529813,1754902241856,-151.0,0.00020819,2]
[378529814,1754902241865,-259.0,0.00020822,2]
[378529815,1754902241875,-1137.9519535,0.00020875,2]
[378529816,1754902241884,-9366.87524174,0.00020888,2]
[378529817,1754902241894,-219.93849987,0.00020904,3]
[378529818,1754902241903,-151.0,0.0002092,2]
[378529819,1754902241912,-151.0,0.0002099,2]
[378529820,1754902241921,-321.0,0.00021046,2]
[378529821,1754902241931,-1500.0,0.00021068,2]
[378529822,1754902241940,-500.0,0.00021073,2]
[378529823,1754902241950,-500.0,0.00021093,2]
[378529824,1754902241959,-500.0,0.00021093,2]
[378529825,1754902241968,-500.0,0.00021093,2]
[378529826,1754902241977,-152.33575119,0.00021093,2]
[378529827,1754902241987,-280.83116402,0.00021093,2]
[378529828,1754902241996,-257.90489718,0.00021093,2]
[378529829,1754902242005,-453.0,0.00021093,2]
[378529830,1754902242015,-298.35778176,0.00021093,2]
[378529831,1754902242024,-151.0,0.00021093,2]
[378529832,1754902242033,-151.52793951,0.00021093,2]
[378529833,1754902242043,-1000.0,0.00021258,2]
[378529834,1754902242053,-1000.0,0.00021258,2]
[378529835,1754902242062,-1000.0,0.00021258,2]
[378529836,1754902242071,-1000.0,0.00021258,2]
[378529837,1754902242081,-1002.63059083,0.00021258,2]
[378529838,1754902242091,-396.0,0.00021284,2]
[378529839,1754902242100,-1001.14541372,0.0002129,2]
[378529840,1754902242109,-1000.0,0.0002129,2]
[378529841,1754902242118,-652.29634327,0.0002129,2]
[378529842,1754902242127,-1618.52,0.00021336,3]
[378529843,1754902242137,-809.26,0.00021336,3]
[378529844,1754902242146,-404.62,0.00021336,3]
[378529845,1754902242155,-160.0,0.00021343,2]
[378529846,1754902242165,-500.0,0.00021347,2]
[378529847,1754902242174,-17010.0,0.00021348,3]
[378529848,1754902242183,-8505.0,0.00021348,3]
[378529849,1754902242193,-4828.68,0.00021348,3]
[378529850,1754902242202,-2414.34,0.00021348,3]
[378529851,1754902242211,-1207.16,0.00021348,3]
[378529852,1754902242220,-603.58,0.00021348,3]
[378529853,1754902242229,-301.8,0.00021348,3]
[378529854,1754902242238,-160.0,0.00021348,3]
[378529855,1754902242247,-417.15472785,0.00021348,3]
[378529856,1754902242256,-461.69158338,0.00021348,3]
[378529857,1754902242265,-215.4905783,0.00021348,3]
[378529858,1754902242274,-12671.21867243,0.00021348,3]
[378529859,1754902242283,-151.0,0.00021367,2]
[378529860,1754902242292,-604.0,0.00021367,2]
[378529861,1754902242302,-306.84673891,0.00021367,2]
[378529862,1754902242311,-500.0,0.00021367,2]
[378529863,1754902242320,-151.0,0.00021367,2]
[378529864,1754902242330,-9366.87524174,0.00021394,2]
[378529865,1754902242339,-151.42926935,0.00021468,2]
[378529866,1754902242349,-312.6,0.00021507,2]
[378529867,1754902242358,-1263.97726586,0.00021571,2]
[378529868,1754902242367,-2000.0,0.00021616,2]
[378529869,1754902242376,-500.0,0.00021621,2]
[378529870,1754902242385,-573.11525788,0.00021655,2]
[378529871,1754902242395,-300.0,0.00021658,2]
[378529872,1754902242404,-160.0,0.00021718,2]
[378529873,1754902242413,-160.0,0.00021732,2]
[378529874,1754902242422,-503.551,0.00021733,2]
[378529875,1754902242431,-2000.0,0.00021733,2]
[378529876,1754902242441,-2000.0,0.00021733,2]
[378529877,1754902242451,-2000.0,0.00021733,2]
[378529878,1754902242460,-2000.0,0.00021733,2]
[378529879,1754902242469,-2000.0,0.00021733,2]
[378529880,1754902242478,-2000.0,0.00021733,2]
[378529881,1754902242488,-2000.0,0.00021733,2]
[378529882,1754902242497,-2000.0,0.00021733,2]
[378529883,1754902242506,-2000.0,0.00021733,2]
[378529884,1754902242515,-2000.0,0.00021733,2]
[378529885,1754902242528,-2000.0,0.00021733,2]
[378529886,1754902242537,-2000.0,0.00021733,2]
[378529887,1754902242546,-2000.0,0.00021733,2]
[378529888,1754902242555,-2000.0,0.00021733,2]
[378529889,1754902242565,-2000.0,0.00021733,2]
[378529890,1754902242574,-2000.0,0.00021733,2]
[378529891,1754902242583,-2000.0,0.00021733,2]
[378529892,1754902242593,-2000.0,0.00021733,2]
[378529893,1754902242602,-2000.0,0.00021733,2]
[378529894,1754902242611,-2000.0,0.00021733,2]
[378529895,1754902242620,-2000.0,0.00021733,2]
[378529896,1754902242629,-2000.0,0.00021733,2]
[378529897,1754902242639,-2000.0,0.00021733,2]
[378529898,1754902242648,-2000.0,0.00021733,2]
[378529899,1754902242657,-2000.0,0.00021733,2]
[378529901,1754902242667,-2000.0,0.00021733,2]
[378529903,1754902242676,-2000.0,0.00021733,2]
[378529905,1754902242686,-2000.0,0.00021733,2]
[378529906,1754902242696,-2000.0,0.00021733,2]
[378529907,1754902242706,-2000.0,0.00021733,2]
[378529908,1754902242716,-342.735,0.00021733,2]
[378529909,1754902242726,-337.73187612,0.00021733,2]
[378529910,1754902242735,-19187.29552238,0.00021741,2]
[378529911,1754902242745,-151.0,0.00021741,2]
[378529912,1754902242755,-420.0,0.00021747,2]
[378529914,1754902242764,-420.0,0.00021747,2]
[378529916,1754902242774,-420.0,0.00021747,2]
[378529918,1754902242783,-420.0,0.00021747,2]
[378529919,1754902242793,-300.0,0.00021747,2]
[378529920,1754902242802,-1680.0,0.00021753,2]
[378529921,1754902242812,-1500.0,0.00021806,2]
[378529923,1754902242821,-501.51738193,0.00021806,2]
[378529925,1754902242831,-1374.98363918,0.00021806,2]
[378529927,1754902242840,-1526.83890217,0.00021806,2]
[378529928,1754902242849,-312.6,0.00021815,2]
[378529929,1754902242858,-527.9539256,0.00021833,3]
[378529930,1754902242867,-1500.0,0.00021838,2]
[378529931,1754902242877,-160.0,0.00021841,2]
[378529932,1754902242887,-160.0,0.00021841,2]
[378529933,1754902242896,-160.0,0.00021841,2]
[378529935,1754902242905,-500.0,0.00021843,2]
[378529936,1754902242914,-500.0,0.00021843,2]
[378529937,1754902242924,-500.0,0.00021843,2]
[378529938,1754902242933,-500.0,0.00021843,2]
[378529939,1754902242942,-151.0,0.00021843,2]
[378529940,1754902242951,-500.0,0.00021843,2]
[378529941,1754902242960,-151.33647579,0.00021843,2]
[378529942,1754902242969,-151.0,0.00021843,2]
[378529943,1754902242979,-500.0,0.00021843,2]
[378529944,1754902242988,-151.0,0.00021843,2]
[378529945,1754902242998,-1680.0,0.00021845,2]
[378529946,1754902243007,-500.0,0.00021873,2]
[378529947,1754902243017,-500.0,0.00021873,2]
[378529948,1754902243027,-260.0,0.00021891,2]
[378529949,1754902243037,-500.0,0.00021895,2]
[378529950,1754902243047,-152.634385,0.000219,2]
[378529951,1754902243058,-9366.87524174,0.000219,2]
[378529952,1754902243068,-10709.55,0.00021917,2]
[378529954,1754902243078,-151.0,0.00021918,2]
[378529955,1754902243088,-151.0,0.00021918,2]
[378529956,1754902243098,-151.0,0.00021918,2]
[378529957,1754902243108,-151.0,0.00021918,2]
[378529958,1754902243118,-500.0,0.00021973,2]
[378529959,1754902243128,-500.0,0.00021973,2]
[378529961,1754902243139,-500.0,0.00021973,2]
[378529962,1754902243148,-443.76120411,0.00021973,2]
[378529963,1754902243157,-500.0,0.00021973,2]
[378529964,1754902243248,-500.0,0.00021973,2]
[378529965,1754902243264,-500.0,0.00021973,2]
[378529966,1754902243275,-500.0,0.00021973,2]
[378529967,1754902243284,-500.0,0.00021973,2]
[378529968,1754902243294,-500.0,0.00021973,2]
[378529969,1754902243303,-500.0,0.00021973,2]
[378529970,1754902243312,-500.0,0.00021973,2]
[378529971,1754902243322,-500.0,0.00021973,2]
[378529972,1754902243331,-500.0,0.00021973,2]
[378529973,1754902243341,-157.04278845,0.00021973,2]
[378529975,1754902243350,-500.0,0.00021973,2]
[378529977,1754902243360,-500.0,0.00021973,2]
[378529978,1754902243369,-500.0,0.00021973,2]
[378529979,1754902243378,-500.0,0.00021973,2]
[378529980,1754902243388,-259.66365204,0.00021973,2]
[378529981,1754902243399,-160.15625833,0.00021973,2]
[378529982,1754902243409,-158.06161699,0.00021973,2]
[378529983,1754902243421,-500.0,0.00021973,2]
[378529984,1754902243432,-500.0,0.00021973,2]
[378529985,1754902243442,-516.5355599,0.00021973,2]
[378529986,1754902243451,-262.54099449,0.00021973,2]
[378529987,1754902243461,-500.38511796,0.00021973,2]
[378529988,1754902243470,-500.0,0.00021973,2]
[378529989,1754902243479,-500.0,0.00021973,2]
[378529990,1754902243489,-500.0,0.00021973,2]
[378529991,1754902243498,-500.0,0.00021973,2]
[378529992,1754902243507,-500.0,0.00021973,2]
[378529993,1754902243517,-500.0,0.00021973,2]
[378529994,1754902243531,-500.0,0.00021973,2]
[378529995,1754902243540,-500.0,0.00021973,2]
[378529996,1754902243549,-500.0,0.00021973,2]
[378529997,1754902243559,-500.0,0.00021973,2]
[378529998,1754902243569,-500.0,0.00021973,2]
[378529999,1754902243578,-500.0,0.00021973,2]
[378530000,1754902243587,-500.0,0.00021973,2]
[378530001,1754902243597,-358.87746642,0.00021973,2]
[378530002,1754902243607,-500.0,0.00021973,2]
[378530003,1754902243616,-258.46628735,0.00021973,2]
[378530004,1754902243626,-420.10754665,0.00021973,2]
[378530005,1754902243635,-500.0,0.00021973,2]
[378530006,1754902243644,-500.0,0.00021973,2]
[378530007,1754902243653,-167.51177959,0.00021973,2]
[378530008,1754902243662,-500.0,0.00021973,2]
[378530009,1754902243672,-500.0,0.00021973,2]
[378530010,1754902243680,-500.0,0.00021973,2]
[378530011,1754902243690,-500.0,0.00021973,2]
[378530012,1754902243700,-500.0,0.00021973,2]
[378530013,1754902243709,-500.0,0.00021973,2]
[378530014,1754902243718,-500.0,0.00021973,2]
[378530015,1754902243727,-155.55451214,0.00021973,2]
[378530016,1754902243737,-500.0,0.00021973,2]
[378530017,1754902243747,-503.15587219,0.00021973,2]
[378530018,1754902243756,-500.0,0.00021973,2]
[378530019,1754902243765,-500.0,0.00021973,2]
[378530020,1754902243774,-258.85036039,0.00021973,2]
[378530021,1754902243783,-362.0,0.00021974,2]
[378530022,1754902243794,-73562.29,0.00022,7]
[378530023,1754902243803,-21216.53,0.00022,7]
[378530024,1754902243813,-46641.88,0.00022,2]
[378530025,1754902243822,-527.9539256,0.00022,7]
[378530026,1754902243832,-160.0,0.00022,7]
[378530027,1754902243841,-151.0,0.00022,7]
[378530028,1754902243850,-151.0,0.00022,7]
[378530029,1754902243860,-186.0,0.00022,2]
[378530030,1754902243869,-417.15472785,0.00022,7]
[378530031,1754902243878,-461.69158338,0.00022,7]
[378530032,1754902243887,-215.4905783,0.00022,7]
[378530033,1754902243898,-12671.21867243,0.00022,7]
[378530034,1754902243909,-159.0,0.00022,2]
[378530035,1754902243920,-500.0,0.00022035,2]
[378530036,1754902243930,-500.0,0.00022035,2]
[378530037,1754902243939,-500.0,0.00022035,2]
[378530038,1754902243949,-500.0,0.00022035,2]
[378530039,1754902243958,-502.95105016,0.00022035,2]
[378530040,1754902243969,-151.0,0.00022051,7]
[378530041,1754902243979,-151.0,0.00022051,7]
[378530042,1754902243989,-152.310469,0.00022051,7]
[378530043,1754902243999,-500.00772827,0.00022117,2]
[378530044,1754902244009,-500.0,0.00022117,2]
[378530045,1754902244018,-500.0,0.00022117,2]
[378530046,1754902244029,-500.0,0.00022117,2]
[378530047,1754902244040,-151.0,0.00022117,2]
[378530048,1754902244050,-500.0,0.00022117,2]
[378530049,1754902244060,-500.0,0.00022117,2]
[378530050,1754902244070,-151.0,0.00022117,2]
[378530051,1754902244079,-312.6,0.00022124,2]
[378530052,1754902244090,-2004.06570944,0.00022164,2]
[378530053,1754902244101,-500.0,0.00022169,2]
[378530054,1754902244110,-159.0,0.00022192,7]
[378530055,1754902244119,-1375.32414554,0.00022317,2]
[378530056,1754902244128,-1404.40520324,0.00022354,2]
[378530057,1754902244137,-200.0,0.00022365,15]
[378530058,1754902244147,-200.0,0.00022365,15]
[378530059,1754902244156,-200.0,0.00022365,15]
[378530060,1754902244166,-200.0,0.00022365,15]
[378530061,1754902244176,-200.0,0.00022365,15]
[378530062,1754902244186,-200.0,0.00022365,15]
[378530063,1754902244198,-200.0,0.00022365,15]
[378530064,1754902244208,-717.07171159,0.00022382,2]
[378530065,1754902244217,-2000.0,0.00022386,2]
[378530066,1754902244226,-500.0,0.00022391,2]
[378530067,1754902244236,-500.0,0.00022391,2]
[378530068,1754902244246,-500.0,0.00022391,2]
[378530069,1754902244255,-152.3066297,0.00022391,2]
[378530070,1754902244265,-500.0,0.00022391,2]
[378530071,1754902244274,-211.92498305,0.00022391,2]
[378530072,1754902244284,-151.0,0.00022391,2]
[378530073,1754902244296,-500.81682096,0.00022421,2]
[378530074,1754902244305,-312.6,0.00022432,2]
[378530075,1754902244314,-360.0,0.00022439,2]
[378530076,1754902244325,-500.0,0.00022443,2]
[378530077,1754902244334,-305.28894,0.00022489,2]
[378530078,1754902244344,-506.10857676,0.00022521,2]
[378530079,1754902244353,-748.07351204,0.00022521,2]
[378530080,1754902244364,-1010.97540017,0.00022521,2]
[378530081,1754902244374,-1000.0,0.00022521,2]
[378530082,1754902244386,-1000.0,0.00022521,2]
[378530083,1754902244397,-510.02556055,0.00022521,2]
[378530084,1754902244407,-540.96312681,0.00022521,2]
[378530085,1754902244416,-1000.0,0.00022521,2]
[378530086,1754902244426,-1000.0,0.00022521,2]
[378530087,1754902244435,-612.83555691,0.00022521,2]
[378530088,1754902244445,-1000.0,0.00022521,2]
[378530089,1754902244455,-1000.0,0.00022521,2]
[378530090,1754902244464,-1000.0,0.00022521,2]
[378530091,1754902244473,-1000.0,0.00022521,2]
[378530092,1754902244483,-1000.0,0.00022521,2]
[378530093,1754902244492,-1000.0,0.00022521,2]
[378530094,1754902244501,-1000.0,0.00022521,2]
[378530095,1754902244510,-832.03455376,0.00022521,2]
[378530096,1754902244598,-1000.0,0.00022521,2]
[378530097,1754902244609,-424.12243688,0.00022521,2]
[378530098,1754902244618,-1000.0,0.00022521,2]
[378530099,1754902244627,-1000.0,0.00022521,2]
[378530100,1754902244636,-1000.0,0.00022521,2]
[378530101,1754902244645,-1000.0,0.00022521,2]
[378530102,1754902244655,-513.42260487,0.00022521,2]
[378530103,1754902244664,-1000.0,0.00022521,2]
[378530104,1754902244672,-1000.0,0.00022521,2]
[378530105,1754902244682,-1000.0,0.00022521,2]
[378530106,1754902244691,-1000.0,0.00022521,2]
[378530107,1754902244701,-1000.0,0.00022521,2]
[378530108,1754902244710,-1000.0,0.00022521,2]
[378530109,1754902244720,-1000.0,0.00022521,2]
[378530110,1754902244730,-1000.0,0.00022521,2]
[378530111,1754902244739,-500.24735261,0.00022521,2]
[378530112,1754902244750,-816.07866541,0.00022521,2]
[378530113,1754902244759,-698.31463455,0.00022521,2]
[378530114,1754902244769,-1005.31612828,0.00022521,2]
[378530115,1754902244778,-501.80345153,0.00022521,2]
[378530116,1754902244788,-964.7644889,0.00022521,2]
[378530117,1754902244797,-504.6663389,0.00022521,2]
[378530118,1754902244806,-1000.0,0.00022521,2]
[378530119,1754902244816,-333.11519119,0.00022521,2]
[378530120,1754902244825,-1000.0,0.00022521,2]
[378530121,1754902244834,-1000.0,0.00022521,2]
[378530122,1754902244843,-1000.0,0.00022521,2]
[378530123,1754902244853,-1000.0,0.00022583,2]
[378530124,1754902244863,-1000.0,0.00022583,2]
[378530125,1754902244872,-1000.0,0.00022583,2]
[378530126,1754902244882,-1000.0,0.00022583,2]
[378530127,1754902244891,-3000.0,0.00022589,2]
[378530128,1754902244901,-151.0,0.000226,10]
[378530129,1754902244910,-151.0,0.00022654,7]
[378530130,1754902244919,-500.0,0.00022654,2]
[378530131,1754902244928,-500.0,0.00022654,2]
[378530132,1754902244938,-371.51471519,0.00022654,2]
[378530133,1754902244947,-500.0,0.00022665,2]
[378530134,1754902244956,-558.92117116,0.00022665,2]
[378530135,1754902244966,-500.0,0.00022665,2]
[378530136,1754902244975,-443.80029098,0.00022665,2]
[378530137,1754902244984,-281.5763041,0.00022665,2]
[378530138,1754902244993,-2000.0,0.00022698,2]
[378530139,1754902245002,-157.66832612,0.0002271,2]
[378530140,1754902245011,-503.0583135,0.0002271,2]
[378530141,1754902245021,-500.0,0.0002271,2]
[378530142,1754902245032,-500.0,0.0002271,2]
[378530143,1754902245042,-500.0,0.00022717,2]
[378530144,1754902245052,-156.587,0.00022717,2]
[378530145,1754902245062,-255.0,0.00022737,2]
[378530146,1754902245071,-312.6,0.00022741,2]
[378530147,1754902245081,-2000.0,0.00022789,2]
[378530148,1754902245092,-151.0,0.00022798,7]
[378530149,1754902245101,-500.0,0.00022876,2]
[378530150,1754902245110,-276.8107237,0.00022876,2]
[378530151,1754902245120,-4000.0,0.00022896,2]
[378530152,1754902245129,-151.0,0.000229,6]
[378530153,1754902245138,-1176.63075959,0.00022934,2]
[378530154,1754902245148,-500.0,0.00022939,2]
[378530155,1754902245158,-500.0,0.00022939,2]
[378530156,1754902245175,-5000.0,0.00022948,2]
[378530157,1754902245191,-151.0,0.00022969,7]
[378530158,1754902245207,-181.366461,0.00022969,7]
[378530159,1754902245226,-500.0,0.00022973,2]
[378530160,1754902245247,-500.0,0.00022973,2]
[378530161,1754902245262,-305.28894,0.0002298,10]
[378530162,1754902245279,-460.0,0.00022987,2]
[378530163,1754902245295,-151.0,0.0002299,7]
[378530164,1754902245309,-500.0,0.00022991,2]
[378530165,1754902245327,-216.68257536,0.00023,3]
[378530166,1754902245346,-160.0,0.00023,3]
[378530167,1754902245362,-843.18994796,0.00023,3]
[378530168,1754902245374,-231.9940742,0.00023,3]
[378530169,1754902245394,-159.0,0.00023014,7]
[378530170,1754902245408,-312.6,0.00023049,2]
[378530171,1754902245423,-1057.58260137,0.00023068,2]
[378530172,1754902245436,-1000.0,0.00023068,2]
[378530173,1754902245450,-1500.0,0.00023068,2]
[378530174,1754902245465,-304.78275468,0.00023068,2]
[378530175,1754902245479,-1500.0,0.00023068,2]
[378530176,1754902245493,-1500.0,0.00023068,2]
[378530177,1754902245507,-274.56406352,0.00023068,2]
[378530178,1754902245523,-428.51014532,0.00023068,2]
[378530179,1754902245536,-1118.9174315,0.00023068,2]
[378530180,1754902245552,-1122.66985659,0.00023068,2]
[378530181,1754902245567,-1500.0,0.00023068,2]
[378530182,1754902245582,-1500.0,0.00023068,2]
[378530183,1754902245597,-1504.95308721,0.00023068,2]
[378530184,1754902245613,-1500.0,0.00023068,2]
[378530185,1754902245628,-1500.0,0.00023068,2]
[378530186,1754902245643,-1500.0,0.00023068,2]
[378530187,1754902245657,-1500.0,0.00023068,2]
[378530188,1754902245671,-1500.0,0.00023068,2]
[378530189,1754902245686,-1508.09197012,0.00023068,2]
[378530190,1754902245700,-1500.0,0.00023068,2]
[378530191,1754902245715,-1003.05769625,0.00023068,2]
[378530192,1754902245730,-1618.11533414,0.00023068,2]
[378530193,1754902245744,-1000.41157304,0.00023068,2]
[378530194,1754902245758,-1500.0,0.00023068,2]
[378530195,1754902245773,-934.70375716,0.00023068,2]
[378530196,1754902245788,-1014.81854937,0.00023068,2]
[378530197,1754902245801,-1500.0,0.00023068,2]
[378530198,1754902245815,-251.16063819,0.00023068,2]
[378530199,1754902245830,-500.0,0.00023073,2]
[378530200,1754902245844,-500.0,0.00023073,2]
[378530201,1754902245859,-500.0,0.00023073,2]
[378530202,1754902245874,-500.0,0.00023073,2]
[378530203,1754902245888,-501.39986974,0.00023073,2]
[378530204,1754902245903,-500.0,0.00023073,2]
[378530205,1754902245917,-500.0,0.00023073,2]